bitfinex-derivatives/quotes_SOLF0:USTF0_20240907
["timestamp","ask_amount","ask_price","bid_price","bid_amount"]
[1725683258466,3.7014,125.26,125.17,9.81]
[1725683258659,4.0011996,125.25,125.2,9.81]
[1725683259263,12.5471,125.26,125.2,9.81]
[1725683259264,9.81,125.26,125.21,3.9941]
[1725683259468,13.82918162,125.26,125.21,3.9941]
[1725683259668,3.9932,125.25,125.21,3.9941]
[1725683263070,3.9932,125.25,125.22,3.9939]
[1725683268067,3.9933,125.24,125.21,3.9941]
[1725683275881,3.9933,125.24,125.2,13.8043]
[1725683276282,3.9937,125.23,125.2,3.9943]
[1725683277083,7.98643064,125.23,125.2,3.9943]
[1725683277580,3.9937,125.23,125.2,3.9943]
[1725683278782,3.9937,125.23,125.19,13.8048]
[1725683286192,3.9939,125.22,125.19,13.8048]
[1725683286992,9.81,125.23,125.14,118.75979168]
[1725683287187,9.81,125.23,125.16,9.81]
[1725683287488,3.9944,125.21,125.17,3.9953]
[1725683293800,3.9941,125.22,125.18,3.9951]
[1725683296909,3.9943,125.21,125.18,3.9951]
[1725683301008,9.81,125.23,125.14,118.77649636]
[1725683301211,9.81,125.22,125.15,9.81]
[1725683302110,3.9948,125.2,125.16,3.9956]
[1725683304116,3.9944,125.21,125.17,13.8055]
[1725683313624,3.9944,125.21,125.18,3.9952]
[1725683314621,3.9941,125.22,125.19,3.9948]
[1725683320132,3.9943,125.21,125.18,3.995]
[1725683321418,9.81,125.21,125.15,9.81]
[1725683321931,3.9947,125.2,125.17,3.9955]
[1725683323330,3.9944,125.21,125.18,3.9952]
[1725683332241,3.9947,125.2,125.17,3.9953]
[1725683340138,3.9947,125.2,125.18,3.9952]
[1725683340344,3.9944,125.21,125.18,3.9952]
[1725683352350,27.88899729,125.24,125.14,118.86057227]
[1725683352553,9.81,125.22,125.15,12.31623134]
[1725683352740,9.81,125.22,125.16,2.50623134]
[1725683352945,3.9944,125.21,125.18,3.9952]
[1725683356854,9.81,125.23,125.17,3.9953]
[1725683356855,3.9947,125.2,125.17,3.9953]
[1725683360056,3.995,125.19,125.16,3.9957]
[1725683361066,3.9947,125.2,125.16,3.9957]
[1725683361558,3.9947,125.2,125.17,5.01252488]
[1725683361754,3.9947,125.2,125.17,2.50626244]
[1725683366056,3.9947,125.2,125.17,6.50176244]
[1725683366557,3.995,125.19,125.17,2.50626244]
[1725683367760,3.9947,125.2,125.17,2.50626244]
[1725683368369,3.9947,125.2,125.16,3.9956]
[1725683370265,9.81,125.2,125.15,3.996]
[1725683370461,9.81,125.2,125.16,2.50659092]
[1725683370665,9.81,125.2,125.15,3.996]
[1725683370866,9.81,125.2,125.16,2.50658959]
[1725683371061,9.81,125.2,125.15,3.996]
[1725683371261,9.81,125.2,125.16,2.50656867]
[1725683371569,3.9954,125.18,125.15,3.996]
[1725683371772,3.9954,125.18,125.16,2.50657311]
[1725683371967,3.9954,125.18,125.15,3.996]
[1725683372263,3.9954,125.18,125.16,2.50657311]
[1725683372471,3.9954,125.18,125.15,3.996]
[1725683372670,3.9954,125.18,125.16,2.50657311]
[1725683372876,3.9954,125.18,125.15,3.996]
[1725683373172,3.9954,125.18,125.16,2.50657311]
[1725683373475,3.9954,125.18,125.15,3.996]
[1725683373666,3.9954,125.18,125.16,2.50657311]
[1725683373866,3.9954,125.18,125.15,3.996]
[1725683374071,3.9954,125.18,125.16,2.50657311]
[1725683374263,3.9954,125.18,125.15,3.996]
[1725683374463,3.9954,125.18,125.16,2.50657311]
[1725683374771,3.9954,125.18,125.15,3.996]
[1725683375367,3.9954,125.18,125.16,2.50657311]
[1725683375769,3.9954,125.18,125.16,5.01315152]
[1725683375974,3.9954,125.18,125.16,2.50657311]
[1725683377372,3.9951,125.19,125.16,2.50657311]
[1725683377767,27.88899729,125.24,125.16,2.50657311]
[1725683377768,27.88899729,125.24,125.16,12.31657311]
[1725683377959,9.81,125.23,125.16,9.81]
[1725683378667,3.9943,125.21,125.18,9.81]
[1725683381875,9.81,125.22,125.16,3.9956]
[1725683382581,3.9948,125.2,125.16,3.9956]
[1725683384581,3.9949,125.19,125.16,3.9956]
[1725683393693,3.9947,125.2,125.16,9.81]
[1725683394382,3.9947,125.2,125.17,3.9954]
[1725683396694,3.9944,125.21,125.17,3.9954]
[1725683396896,26.45959729,125.24,125.19,13.8048]
[1725683397288,3.9939,125.23,125.19,13.8048]
[1725683398187,22.38544823,125.24,125.21,3.9941]
[1725683398388,143.51993067,125.25,125.21,3.9941]
[1725683398788,147.43250593,125.25,125.21,3.9941]
[1725683400498,3.9933,125.24,125.21,3.9941]
[1725683402196,3.9933,125.24,125.19,9.81]
[1725683402197,3.9936,125.23,125.2,3.9944]
[1725683406905,9.81,125.23,125.14,8.02932117]
[1725683407099,9.81,125.23,125.16,9.81]
[1725683407405,3.9944,125.21,125.17,3.9953]
[1725683408506,3.9944,125.21,125.18,3.9952]
[1725683411805,3.9944,125.21,125.16,9.81]
[1725683412012,22.38534238,125.24,125.19,9.81]
[1725683412202,143.43950593,125.25,125.19,9.81]
[1725683412598,3.9938,125.23,125.2,3.9944]
[1725683413293,143.43950593,125.25,125.2,9.81]
[1725683414306,147.43280593,125.25,125.21,3.9941]
[1725683414506,143.43950593,125.25,125.2,9.81]
[1725683414805,143.43950593,125.25,125.15,2.50539445]
[1725683414806,3.9938,125.23,125.15,2.50539445]
[1725683415105,3.9938,125.23,125.18,9.81]
[1725683415813,3.9938,125.23,125.19,3.9947]
[1725683415999,3.9938,125.23,125.18,9.81]
[1725683416000,9.81,125.22,125.14,8.02932117]
[1725683416199,9.81,125.22,125.16,9.81]
[1725683416401,9.81,125.22,125.18,3.995]
[1725683416911,3.9944,125.21,125.16,9.81]
[1725683417110,3.9944,125.21,125.17,3.9953]
[1725683418107,3.9944,125.21,125.16,9.81]
[1725683418316,3.9944,125.21,125.18,3.9952]
[1725683419812,9.81,125.22,125.17,3.9954]
[1725683420414,3.9944,125.21,125.17,3.9954]
[1725683420610,9.81,125.22,125.17,3.9954]
[1725683421609,9.81,125.21,125.16,3.9957]
[1725683422610,3.9947,125.2,125.16,3.9957]
[1725683423418,3.9955,125.17,125.14,3.9963]
[1725683423615,8.08228715,125.17,125.14,3.9963]
[1725683424113,3.9955,125.17,125.14,3.9963]
[1725683424817,3.9955,125.17,125.13,397.11631547]
[1725683424818,9.81,125.21,125.15,9.81]
[1725683425320,3.9952,125.19,125.15,13.806]
[1725683426208,3.9947,125.2,125.16,13.8058]
[1725683428519,9.81,125.22,125.16,13.8058]
[1725683428520,3.9949,125.19,125.16,13.8058]
[1725683438025,3.9947,125.2,125.16,13.8058]
[1725683439321,3.9947,125.2,125.17,3.9955]
[1725683445926,3.9944,125.21,125.17,3.9955]
[1725683456239,3.9947,125.2,125.17,3.9955]
[1725683456449,3.9947,125.2,125.16,3.9957]
[1725683459246,3.9947,125.2,125.17,3.9955]
[1725683459440,135.13885801,125.24,125.18,9.81]
[1725683460137,3.9941,125.22,125.19,3.9947]
[1725683460332,135.13885801,125.24,125.19,3.9947]
[1725683460539,135.13885801,125.24,125.2,9.81]
[1725683460936,139.13225801,125.24,125.2,13.8044]
[1725683461649,1.3374,125.27,125.22,9.81]
[1725683461836,3.89805559,125.26,125.22,9.81]
[1725683462131,8.01928636,125.25,125.21,13.804]
[1725683462346,8.01928636,125.25,125.21,3.994]
[1725683462536,13.83628636,125.25,125.15,2.50385632]
[1725683462734,3.9939,125.22,125.18,3.995]
[1725683472147,9.81,125.24,125.18,3.995]
[1725683472848,3.9942,125.22,125.18,3.995]
[1725683476153,3.9943,125.21,125.18,3.995]
[1725683481548,3.9946,125.2,125.17,3.9954]
[1725683481857,3.9946,125.2,125.17,9.81]
[1725683489557,1.4327,125.24,125.17,9.81]
[1725683489558,3.995,125.19,125.17,9.81]
[1725683496164,3.9948,125.2,125.17,9.81]
[1725683497973,3.9949,125.19,125.17,9.81]
[1725683499671,3.9947,125.2,125.17,9.81]
[1725683499878,11.2427,125.24,125.18,9.81]
[1725683500577,3.9944,125.21,125.18,13.805]
[1725683506790,3.9946,125.2,125.17,3.9953]
[1725683507790,12.6123,125.24,125.18,9.81]
[1725683508185,12.6123,125.24,125.18,13.805]
[1725683508790,3.9943,125.21,125.18,13.805]
[1725683509082,26.4361452,125.25,125.19,9.81]
[1725683509789,26.4361452,125.25,125.2,9.81]
[1725683511389,3.9935,125.24,125.2,13.8044]
[1725683511590,3.9935,125.24,125.2,9.81]
[1725683511790,3.9935,125.24,125.22,9.81]
[1725683516086,30.42884751,125.25,125.22,13.8037]
[1725683516292,3.9932,125.25,125.22,13.8037]
[1725683516686,3.95469715,125.26,125.22,9.81]
[1725683516883,3.9933,125.24,125.22,9.81]
[1725683518592,3.9939,125.23,125.2,13.8044]
[1725683521985,3.9941,125.22,125.18,4.1815]
[1725683522987,3.9941,125.22,125.18,8.1765]
[1725683524198,3.9943,125.21,125.18,8.1765]
[1725683525394,13.76318284,125.24,125.18,2.8037]
[1725683525395,9.81,125.23,125.18,2.8037]
[1725683525596,9.81,125.23,125.17,3.9954]
[1725683527603,9.81,125.23,125.16,9.81]
[1725683528201,9.81,125.23,125.17,3.9953]
[1725683529096,3.9947,125.2,125.17,3.9953]
[1725683541505,9.81,125.21,125.14,4.0299]
[1725683541709,9.81,125.18,125.13,273.97134]
[1725683541911,4.0871137,125.17,125.13,273.97134]
[1725683542101,3.9961,125.16,125.13,277.96794]
[1725683543313,3.9956,125.17,125.14,3.9964]
[1725683543513,9.81,125.21,125.15,9.81]
[1725683544008,9.81,125.21,125.15,13.8059]
[1725683544406,9.81,125.23,125.16,9.81]
[1725683544613,3.995,125.19,125.16,13.8057]
[1725683545916,9.81,125.21,125.16,3.9957]
[1725683546118,9.81,125.21,125.15,13.806]
[1725683547320,3.9953,125.18,125.15,13.806]
[1725683550924,3.995,125.19,125.15,13.806]
[1725683556138,3.95318284,125.24,125.16,9.81]
[1725683556326,3.95318284,125.24,125.19,9.81]
[1725683556931,166.14395101,125.26,125.19,9.81]
[1725683557331,3.9933,125.24,125.2,3.9944]
[1725683560929,3.9937,125.23,125.2,3.9944]
[1725683561131,3.9937,125.23,125.19,3.9949]
[1725683563825,3.9937,125.23,125.19,3.9947]
[1725683565836,3.994,125.22,125.19,3.9947]
[1725683574649,22.3872036,125.25,125.18,9.81]
[1725683574833,9.81,125.25,125.18,9.81]
[1725683575234,9.81,125.25,125.19,9.81]
[1725683575542,159.05784918,125.26,125.21,9.81]
[1725683577446,3.993,125.25,125.22,3.9937]
[1725683577840,3.993,125.25,125.21,9.81]
[1725683577841,9.81,125.25,125.21,3.9941]
[1725683578442,9.81,125.25,125.19,9.81]
[1725683578443,29.56912104,125.32,125.22,9.81]
[1725683578657,9.81,125.29,125.2,1.3711]
[1725683578840,9.81,125.29,125.23,9.81]
[1725683579247,3.9922,125.28,125.24,3.9931]
[1725683579453,3.9922,125.28,125.23,9.81]
[1725683580246,4.06521045,125.33,125.25,9.81]
[1725683580443,22.3864907,125.36,125.28,9.81]
[1725683580643,10.56941878,125.35,125.28,9.81]
[1725683580845,9.81,125.35,125.28,9.81]
[1725683581039,4.74952701,125.34,125.3,3.9912]
[1725683581246,3.9901,125.34,125.3,3.9912]
[1725683581546,3.9888,125.39,125.33,9.81]
[1725683581746,0.75927668,125.38,125.33,9.81]
[1725683581951,0.75928097,125.37,125.33,9.81]
[1725683582249,4.08758992,125.4,125.33,9.81]
[1725683582451,10.56922947,125.39,125.33,9.81]
[1725683582649,4.79412266,125.38,125.33,9.81]
[1725683582846,4.03489319,125.38,125.33,9.81]
[1725683583143,8.02379319,125.38,125.33,3.9903]
[1725683583348,0.75929668,125.37,125.33,3.9903]
[1725683584446,3.9891,125.37,125.33,3.9903]
[1725683586248,22.40145104,125.43,125.36,9.81]
[1725683586453,0.75882625,125.42,125.36,9.81]
[1725683586658,4.77686694,125.41,125.36,9.81]
[1725683586954,0.75882625,125.4,125.36,9.81]
[1725683587148,3.9878,125.42,125.36,9.81]
[1725683587349,0.75890572,125.41,125.36,9.81]
[1725683588461,0.75890572,125.41,125.38,3.9888]
[1725683588653,0.7589909,125.4,125.38,3.9888]
[1725683588949,8.07288786,125.42,125.38,3.9888]
[1725683589145,0.75899111,125.41,125.38,3.9888]
[1725683591757,8.07288786,125.42,125.36,9.81]
[1725683591952,8.07288786,125.42,125.37,4.057]
[1725683592260,8.07288786,125.42,125.38,3.9886]
[1725683594158,3.9879,125.41,125.37,6.7249]
[1725683594351,3.9879,125.41,125.27,273.43495]
[1725683594352,9.81,125.4,125.34,2.6489]
[1725683594664,9.81,125.4,125.34,12.4589]
[1725683594854,13.7984,125.4,125.36,3.9893]
[1725683595660,3.96121972,125.39,125.36,3.9893]
[1725683598556,7.94981972,125.39,125.36,3.9893]
[1725683598747,3.9886,125.39,125.36,3.9893]
[1725683599257,8.02674888,125.39,125.36,3.9893]
[1725683601057,3.9889,125.38,125.35,3.9896]
[1725683605370,8.02694888,125.39,125.35,3.9896]
[1725683605668,3.9888,125.39,125.35,13.7996]
[1725683606071,8.02176154,125.39,125.35,13.7996]
[1725683608675,3.9888,125.39,125.36,3.9895]
[1725683609068,3.9884,125.4,125.36,3.9895]
[1725683609870,3.9884,125.4,125.37,13.7989]
[1725683612571,9.81,125.4,125.34,2.6489]
[1725683614373,3.989,125.38,125.35,3.9896]
[1725683617476,3.989,125.38,125.35,13.7996]
[1725683618570,9.81,125.4,125.35,9.81]
[1725683618774,9.81,125.4,125.32,9.81]
[1725683618775,0.75888947,125.39,125.32,9.81]
[1725683619472,3.9892,125.37,125.33,3.9902]
[1725683620678,3.9895,125.36,125.33,3.9902]
[1725683621182,3.99,125.35,125.31,1.3398]
[1725683621566,3.99,125.35,125.31,11.1498]
[1725683621772,7.97539634,125.35,125.31,11.1498]
[1725683621972,7.97539634,125.35,125.32,3.9907]
[1725683632785,3.9906,125.33,125.31,1.3398]
[1725683632975,3.98539634,125.35,125.31,1.3398]
[1725683633178,9.81,125.38,125.31,1.3398]
[1725683633378,3.99,125.35,125.31,5.3306]
[1725683633579,7.91736153,125.35,125.31,5.3306]
[1725683634581,7.91736153,125.35,125.32,3.9906]
[1725683634883,3.9896,125.36,125.32,9.81]
[1725683635085,7.95767198,125.36,125.33,3.9903]
[1725683640092,2.7658,125.41,125.33,13.8003]
[1725683640303,10.56819003,125.4,125.33,9.81]
[1725683640496,9.81,125.4,125.35,9.81]
[1725683640791,3.989,125.38,125.35,13.7996]
[1725683641184,5.01024192,125.43,125.35,9.81]
[1725683641185,27.3864563,125.43,125.35,9.81]
[1725683641384,3.9888,125.39,125.36,3.9894]
[1725683642191,3.9889,125.38,125.35,13.7997]
[1725683656819,14.82024192,125.43,125.37,3.9891]
[1725683657113,0.75819116,125.42,125.37,3.9891]
[1725683657415,3.9884,125.4,125.37,3.9891]
[1725683661619,5.01024192,125.43,125.33,1.4048]
[1725683661825,9.81,125.4,125.33,1.4048]
[1725683662024,3.9895,125.36,125.33,15.205]
[1725683662323,7.99724361,125.36,125.33,15.205]
[1725683662525,3.9895,125.36,125.33,15.205]
[1725683663027,8.03635134,125.36,125.33,15.205]
[1725683663822,3.9884,125.4,125.35,3.9896]
[1725683664032,0.75820248,125.39,125.37,9.81]
[1725683664325,14.82024192,125.43,125.37,9.81]
[1725683664524,3.9885,125.4,125.37,9.81]
[1725683664829,14.82024192,125.43,125.37,9.81]
[1725683665125,0.75822616,125.42,125.37,9.81]
[1725683666129,3.9885,125.39,125.37,9.81]
[1725683670230,3.9885,125.39,125.36,3.9892]
[1725683670534,3.9885,125.39,125.35,13.7995]
[1725683675636,9.81,125.41,125.34,13.8]
[1725683676336,3.989,125.38,125.35,3.9898]
[1725683681435,3.9887,125.39,125.37,9.81]
[1725683691848,3.9887,125.39,125.37,13.7991]
[1725683694357,3.9883,125.4,125.37,13.7991]
[1725683696058,9.81,125.42,125.33,1.4048]
[1725683696247,0.75816609,125.41,125.34,9.81]
[1725683696447,0.75817568,125.41,125.34,9.81]
[1725683696852,3.989,125.38,125.35,3.9896]
[1725683702050,3.989,125.38,125.36,9.81]
[1725683702245,3.9887,125.39,125.36,13.7994]
[1725683704457,3.989,125.38,125.35,3.9897]
[1725683704653,9.81,125.37,125.23,584.47372588]
[1725683704854,9.81,125.37,125.28,5.22571713]
[1725683705058,3.9903,125.34,125.31,9.81]
[1725683705252,3.9851594,125.34,125.31,9.81]
[1725683705458,9.81,125.37,125.31,9.81]
[1725683706354,3.9903,125.34,125.31,9.81]
[1725683706553,7.97665639,125.34,125.31,9.81]
[1725683710056,3.9904,125.33,125.31,9.81]
[1725683722672,3.9904,125.33,125.3,13.8012]
[1725683723265,3.9902,125.34,125.31,3.9908]
[1725683723469,3.9902,125.34,125.31,13.8008]
[1725683725569,34.87501438,125.4,125.33,9.81]
[1725683725776,0.75826495,125.39,125.33,9.81]
[1725683726079,3.9893,125.37,125.33,13.8001]
[1725683728362,3.9895,125.36,125.33,13.8001]
[1725683728573,7.88732649,125.36,125.33,13.8001]
[1725683735183,7.88732649,125.36,125.33,9.81]
[1725683735382,3.9898,125.35,125.32,3.9906]
[1725683738687,3.9902,125.34,125.31,3.9909]
[1725683738887,9.81,125.35,125.29,9.81]
[1725683739196,3.9915,125.3,125.27,416.19462005]
[1725683739889,3.9915,125.3,125.27,416.11631984]
[1725683740386,7.89208035,125.3,125.27,416.11631984]
[1725683743286,3.9917,125.29,125.27,273.35664979]
[1725683745487,7.89208035,125.3,125.27,273.35664979]
[1725683745690,3.9915,125.3,125.27,273.35664979]
[1725683746284,3.99960215,125.29,125.27,273.35664979]
[1725683746692,7.99140215,125.29,125.27,273.35664979]
[1725683746894,3.99960215,125.29,125.27,273.35664979]
[1725683747199,9.81,125.32,125.27,273.35664979]
[1725683747702,13.73413796,125.32,125.27,273.35664979]
[1725683748999,3.9917,125.29,125.27,273.35664979]
[1725683751405,3.92413796,125.32,125.27,273.35664979]
[1725683751603,9.81,125.33,125.27,283.16664979]
[1725683751807,13.78644383,125.33,125.27,283.16664979]
[1725683752502,3.9912,125.31,125.28,3.992]
[1725683753007,3.9915,125.3,125.27,277.34884979]
[1725683753602,3.9918,125.29,125.27,273.35664979]
[1725683753809,9.81,125.29,125.27,273.35664979]
[1725683754403,13.84354107,125.29,125.27,273.35664979]
[1725683755406,3.992,125.28,125.27,273.35664979]
[1725683778623,4.03354107,125.29,125.27,273.35664979]
[1725683778826,9.81,125.3,125.27,273.35664979]
[1725683779519,4.00367574,125.29,125.27,273.35664979]
[1725683780920,7.99537574,125.29,125.27,273.35664979]
[1725683781623,4.00367574,125.29,125.27,277.34894979]
[1725683781929,3.97779587,125.31,125.27,273.35664979]
[1725683782125,2.3495,125.38,125.27,283.16664979]
[1725683782331,3.9904,125.33,125.29,3.9914]
[1725683782628,4.01334044,125.32,125.29,3.9914]
[1725683785331,3.9904,125.33,125.29,3.9914]
[1725683785829,8.01283932,125.33,125.29,3.9914]
[1725683786025,3.9904,125.33,125.29,3.9914]
[1725683786720,4.06955077,125.32,125.29,3.9914]
[1725683788726,8.06025077,125.32,125.29,3.9914]
[1725683789332,8.06025077,125.32,125.27,273.35664979]
[1725683789532,8.06025077,125.32,125.28,3.992]
[1725683789930,17.87025077,125.32,125.28,3.992]
[1725683793324,3.9907,125.32,125.29,3.9916]
[1725683793527,8.0354973,125.32,125.29,5.2984]
[1725683796236,13.8005,125.33,125.3,3.9913]
[1725683796530,17.891211,125.33,125.3,3.9913]
[1725683797335,1.3878,125.38,125.29,11.1168]
[1725683797633,10.5633005,125.37,125.3,12.5015]
[1725683797929,3.9897,125.36,125.32,3.9905]
[1725683798230,3.95952418,125.35,125.32,3.9905]
[1725683804538,13.7998,125.35,125.31,3.991]
[1725683804736,13.8254102,125.35,125.31,3.991]
[1725683806341,3.9902,125.34,125.31,3.991]
[1725683811346,9.81,125.34,125.29,1.3068]
[1725683811846,3.9907,125.33,125.29,5.2982]
[1725683812944,3.9903,125.34,125.3,9.81]
[1725683814237,3.9903,125.34,125.31,3.9908]
[1725683814437,3.9903,125.34,125.3,9.81]
[1725683815138,8.0053102,125.35,125.32,3.9907]
[1725683816243,4.0154102,125.35,125.3,9.81]
[1725683816444,9.81,125.37,125.31,2.7374]
[1725683817846,3.99,125.35,125.32,3.9906]
[1725683818046,8.0109988,125.35,125.32,3.9906]
[1725683818348,3.9903,125.34,125.31,2.7374]
[1725683819244,3.9903,125.34,125.31,6.7283]
[1725683823751,10.0988826,125.4,125.33,9.81]
[1725683823955,16.19980371,125.42,125.35,9.81]
[1725683824242,15.23910371,125.42,125.36,9.81]
[1725683824548,4.05430371,125.42,125.36,9.81]
[1725683824748,3.988,125.41,125.37,3.9889]
[1725683835456,4.05430371,125.42,125.37,3.9889]
[1725683835754,4.05430371,125.42,125.36,3.9893]
[1725683835755,9.81,125.42,125.36,3.9893]
[1725683836158,3.9885,125.4,125.36,3.9893]
[1725683836749,3.9885,125.39,125.36,3.9893]
[1725683842359,9.81,125.39,125.33,9.81]
[1725683843066,3.9894,125.37,125.34,3.9899]
[1725683844569,3.989,125.38,125.34,3.9899]
[1725683850570,3.9892,125.37,125.33,13.8002]
[1725683850871,3.95179171,125.36,125.33,13.8002]
[1725683851269,3.95179171,125.36,125.34,3.99]
[1725683854471,3.9892,125.37,125.34,3.99]
[1725683857479,9.81,125.39,125.33,9.81]
[1725683859277,3.9893,125.37,125.34,3.99]
[1725683859580,3.99529255,125.36,125.34,3.99]
[1725683860170,3.9893,125.37,125.34,3.99]
[1725683860575,3.9889,125.38,125.35,3.9898]
[1725683863582,3.9889,125.38,125.34,13.7999]
[1725683864385,3.9891,125.37,125.34,13.7999]
[1725683868981,3.9888,125.39,125.34,9.81]
[1725683869181,3.9888,125.39,125.32,1.3535]
[1725683869182,151.59919252,125.41,125.37,9.81]
[1725683869784,3.9884,125.4,125.37,13.7991]
[1725683870290,151.59919252,125.41,125.38,3.9888]
[1725683870988,155.58719252,125.41,125.38,3.9888]
[1725683873388,1.3798,125.48,125.4,9.81]
[1725683873582,9.81,125.47,125.4,9.81]
[1725683873782,0.75237204,125.46,125.41,9.81]
[1725683874383,13.82787697,125.47,125.41,9.81]
[1725683874877,3.9865,125.46,125.42,3.9875]
[1725683882891,3.9865,125.46,125.42,13.7975]
[1725683883188,10.09404874,125.51,125.45,9.81]
[1725683883388,3.99066876,125.51,125.47,9.81]
[1725683883584,9.81,125.54,125.47,9.81]
[1725683883783,0.75178673,125.53,125.48,3.9854]
[1725683883990,4.66188427,125.53,125.48,3.9854]
[1725683884192,4.73618673,125.52,125.48,3.9855]
[1725683884384,3.9844,125.52,125.48,3.9855]
[1725683884592,0.75168008,125.51,125.48,9.81]
[1725683884789,3.9838,125.54,125.49,3.985]
[1725683884994,0.75164793,125.53,125.49,3.985]
[1725683885204,0.75164793,125.53,125.48,9.81]
[1725683885503,0.75164793,125.52,125.49,3.9851]
[1725683885797,9.81,125.56,125.49,3.9851]
[1725683885999,0.75165338,125.55,125.49,3.9851]
[1725683886702,4.73545338,125.54,125.49,3.9851]
[1725683886901,0.75165338,125.53,125.49,3.9851]
[1725683887400,4.73575338,125.53,125.49,3.9851]
[1725683887701,0.75157354,125.52,125.49,3.9851]
[1725683888396,3.9841,125.53,125.49,3.9851]
[1725683888602,0.75157458,125.52,125.49,3.9851]
[1725683889000,0.75157458,125.52,125.48,3.9855]
[1725683889202,4.73607458,125.52,125.48,13.7955]
[1725683889402,3.9845,125.52,125.48,13.7955]
[1725683889900,3.9845,125.52,125.49,13.7953]
[1725683892208,7.62027102,125.57,125.5,13.7949]
[1725683892393,0.75154445,125.56,125.5,13.7949]
[1725683893003,3.984,125.54,125.5,13.7949]
[1725683893204,0.75154445,125.53,125.5,13.7949]
[1725683894101,4.73564445,125.53,125.5,13.7949]
[1725683894296,3.9841,125.53,125.5,13.7949]
[1725683895706,3.984,125.54,125.52,9.81]
[1725683896507,7.94212673,125.55,125.52,9.81]
[1725683896708,0.75146023,125.54,125.52,13.7943]
[1725683896901,3.96500454,125.56,125.52,13.7943]
[1725683897096,0.75145997,125.55,125.52,13.7943]
[1725683898408,4.73495997,125.55,125.52,13.7943]
[1725683898707,0.75145997,125.54,125.52,13.7943]
[1725683900106,3.9835,125.55,125.52,13.7943]
[1725683900310,0.75147062,125.54,125.52,13.7943]
[1725683902610,0.75147062,125.54,125.52,9.81]
[1725683904316,4.03595767,125.56,125.5,3.9848]
[1725683904509,0.75148216,125.55,125.49,9.81]
[1725683904810,3.9843,125.53,125.49,13.7951]
[1725683906608,13.71339448,125.55,125.48,131.97336096]
[1725683906816,0.75163233,125.54,125.48,141.78336096]
[1725683907017,4.69328757,125.54,125.48,141.78336096]
[1725683907313,0.75163233,125.53,125.48,145.76896096]
[1725683907815,0.75163233,125.52,125.48,145.76896096]
[1725683908016,3.92633907,125.52,125.48,145.76896096]
[1725683908312,3.985,125.51,125.48,141.78336096]
[1725683921520,3.985,125.51,125.48,145.76896096]
[1725683922418,3.985,125.51,125.5,9.81]
[1725683934833,3.98613103,125.52,125.5,9.81]
[1725683935039,9.81,125.56,125.5,9.81]
[1725683935229,0.75164405,125.55,125.5,9.81]
[1725683935830,3.9846,125.52,125.5,9.81]
[1725683936239,3.9847,125.51,125.5,9.81]
[1725683938434,4.03555906,125.55,125.5,9.81]
[1725683938637,0.75154408,125.54,125.52,9.81]
[1725683938858,29.56912104,125.58,125.52,9.81]
[1725683939143,0.75147512,125.57,125.52,9.81]
[1725683939338,4.70411918,125.57,125.52,9.81]
[1725683939535,0.75147512,125.56,125.52,9.81]
[1725683939936,0.75147512,125.55,125.52,9.81]
[1725683940239,4.73537512,125.54,125.52,9.81]
[1725683940442,3.9839,125.54,125.52,9.81]
[1725683941035,7.93981974,125.54,125.52,9.81]
[1725683942033,3.9841,125.53,125.5,3.9849]